fUST/lending_fUST_20260112
["ID","MTS","AMOUNT","RATE_DAILY","PERIOD"]
[401384974,1768170641935,-2398.4119403,0.00023643,2]
[401384976,1768170641944,-250.0,0.00023643,2]
[401384978,1768170641953,-250.0,0.00023643,2]
[401384980,1768170641962,-151.0,0.00023643,2]
[401384983,1768170641972,-156.587,0.00023643,2]
[401384984,1768170641984,-152.09143049,0.00023643,2]
[401384987,1768170641995,-151.0,0.00023643,2]
[401384989,1768170642007,-151.0,0.00023643,2]
[401384990,1768170642017,-151.0,0.00023643,2]
[401384993,1768170642027,-250.0,0.00023643,2]
[401384994,1768170642038,-151.0,0.00023643,2]
[401384997,1768170642048,-250.0,0.00023643,2]
[401384999,1768170642057,-151.0,0.00023643,2]
[401385000,1768170642067,-151.0,0.00023643,2]
[401385002,1768170642077,-151.0,0.00023643,2]
[401385004,1768170642086,-151.0,0.00023643,2]
[401385007,1768170642095,-151.0,0.00023643,2]
[401385009,1768170642104,-151.0,0.00023643,2]
[401385011,1768170642113,-151.0,0.00023643,2]
[401385013,1768170642122,-151.0,0.00023643,2]
[401385015,1768170642132,-151.0,0.00023643,2]
[401385016,1768170642141,-151.0,0.00023643,2]
[401385018,1768170642149,-151.0,0.00023643,2]
[401385020,1768170642158,-151.0,0.00023643,2]
[401385022,1768170642167,-2263.25436862,0.00023868,2]
[401385025,1768170642176,-1000.0,0.00023889,5]
[401385026,1768170642186,-10587.26883725,0.00024,2]
[401385029,1768170642195,-1735.95551278,0.00024,2]
[401385030,1768170642204,-465.77515985,0.00024,2]
[401385032,1768170642213,-300.0,0.0002411,2]
[401385034,1768170642222,-2570.33183704,0.0002411,2]
[401385036,1768170642231,-240206.49960146,0.00024142,2]
[401386194,1768170793133,155.0,5.98e-05,2]
[401386306,1768171321305,182.39505417,0.00023615,120]
[401386309,1768171328202,247.36,0.00030137,120]
[401386404,1768171838144,-210.25789775,0.0001045,2]
[401386405,1768171838154,-67.53202216,0.0001245,2]
[401386406,1768171838204,-180.57229718,0.0001245,2]
[401386407,1768171838214,-154.95,0.00012584,2]
[401386408,1768171838224,-180.77,0.00013371,2]
[401386409,1768171838237,-500.0,0.00013698,2]
[401386410,1768171838248,-500.0,0.00014145,2]
[401386411,1768171838258,-167.22410082,0.00014157,2]
[401386412,1768171838269,-39.37589918,0.00014157,2]
[401386413,1768171838279,-285.95074094,0.0001445,2]
[401386414,1768171838289,-232.42,0.00014944,2]
[401386415,1768171838298,-258.24,0.0001573,2]
[401386416,1768171838311,-1000.0,0.000158,2]
[401386417,1768171838320,-1000.0,0.000158,2]
[401386418,1768171838330,-1000.0,0.000158,2]
[401386419,1768171838339,-1000.0,0.000158,2]
[401386420,1768171838349,-1000.0,0.000158,2]
[401386421,1768171838358,-1000.0,0.000158,2]
[401386422,1768171838368,-775.19861809,0.000158,2]
[401386442,1768171840340,-224.80138191,0.000158,2]
[401386444,1768171840354,-162.86752501,0.000158,2]
[401386451,1768171840404,-837.13247499,0.000158,2]
[401386453,1768171840418,-1000.0,0.000158,2]
[401386456,1768171840432,-1000.0,0.000159,2]
[401386458,1768171840443,-300.0,0.00016115,2]
[401386460,1768171840453,-300.0,0.00016115,2]
[401386462,1768171840467,-300.0,0.00016115,2]
[401386465,1768171840479,-300.0,0.00016115,2]
[401386467,1768171840491,-300.0,0.00016115,2]
[401386469,1768171840504,-300.0,0.00016115,2]
[401386472,1768171840517,-300.0,0.00016115,2]
[401386474,1768171840529,-300.0,0.00016115,2]
[401386476,1768171840541,-300.0,0.00016115,2]
[401386479,1768171840555,-300.0,0.00016115,2]
[401386481,1768171840567,-300.0,0.00016115,2]
[401386483,1768171840580,-300.0,0.00016115,2]
[401386486,1768171840592,-300.0,0.00016115,2]
[401386488,1768171840606,-300.0,0.00016115,2]
[401386491,1768171840618,-300.0,0.00016115,2]
[401386493,1768171840630,-600.0,0.00016115,2]
[401386495,1768171840642,-323.79716253,0.0001645,2]
[401386497,1768171840655,-720.0,0.00017726,2]
[401386500,1768171840667,-361.64358413,0.0001845,2]
[401386502,1768171840679,-574.317457,0.00018674,2]
[401386504,1768171840691,-864.0,0.00019499,2]
[401386507,1768171840701,-210.86943189,0.0002,2]
[401386509,1768171840711,-399.49000572,0.0002045,2]
[401386511,1768171840723,-498.0,0.00020792,2]
[401386513,1768171840734,-1000.0,0.00021449,10]
[401386515,1768171840746,-498.0,0.00022052,2]
[401386518,1768171840758,-2570.33183704,0.00022059,2]
[401386520,1768171840771,-574.317457,0.00022099,2]
[401386522,1768171840782,-2570.33183704,0.00022385,2]
[401386525,1768171840795,-182.39505418,0.00022434,2]
[401386527,1768171840807,-437.33642732,0.0002245,2]
[401386529,1768171840820,-300.0,0.00022466,2]
[401386532,1768171840833,-2570.33183704,0.00022487,2]
[401386534,1768171840845,-2570.33183704,0.00022847,2]
[401386536,1768171840855,-450.0,0.00023014,2]
[401386538,1768171840865,-2570.33183704,0.00023198,2]
[401386540,1768171840875,-498.0,0.00023312,2]
[401386543,1768171840886,-2570.33183704,0.00023325,2]
[401386545,1768171840898,-182.39505418,0.00023379,56]
[401386547,1768171840911,-754.1663364,0.00023492,2]
[401386550,1768171840923,-600.0,0.00023562,2]
[401386552,1768171840936,-942.22337932,0.00023588,2]
[401386554,1768171840947,-1000.0,0.00023594,10]
[401386556,1768171840958,-244.0,0.00023594,10]
[401386558,1768171840969,-298.14996075,0.00023687,2]
[401386561,1768171840980,-352.8,0.00023687,2]
[401386563,1768171840992,-271.8,0.00023687,2]
[401386565,1768171841003,-500.0,0.00023688,2]
[401386567,1768171841013,-151.0,0.00023688,2]
[401386569,1768171841024,-250.0,0.00023688,2]
[401386572,1768171841034,-500.0,0.00023688,2]
[401386574,1768171841045,-151.0,0.00023688,2]
[401386576,1768171841055,-250.0,0.00023688,2]
[401386578,1768171841066,-500.0,0.00023688,2]
[401386580,1768171841077,-151.0,0.00023688,2]
[401386582,1768171841088,-250.0,0.00023688,2]
[401386584,1768171841099,-500.0,0.00023688,2]
[401386587,1768171841109,-151.0,0.00023688,2]
[401386589,1768171841121,-151.0,0.00023688,2]
[401386591,1768171841131,-250.0,0.00023688,2]
[401386593,1768171841143,-500.0,0.00023688,2]
[401386595,1768171841153,-151.0,0.00023688,2]
[401386597,1768171841164,-151.0,0.00023688,2]
[401386600,1768171841175,-250.0,0.00023688,2]
[401386602,1768171841186,-500.0,0.00023688,2]
[401386604,1768171841196,-185.0,0.00023688,2]
[401386606,1768171841207,-496.47127164,0.00023688,2]
[401386608,1768171841218,-151.0,0.00023688,2]
[401386610,1768171841229,-250.0,0.00023688,2]
[401386612,1768171841243,-500.0,0.00023688,2]
[401386615,1768171841255,-151.0,0.00023688,2]
[401386617,1768171841265,-250.0,0.00023688,2]
[401386619,1768171841276,-500.0,0.00023688,2]
[401386621,1768171841287,-151.0,0.00023688,2]
[401386623,1768171841299,-8050.82143627,0.00023688,2]
[401387025,1768171845333,-1041.66666667,0.00020144,2]
[401387027,1768171845343,-3089.46215955,0.00023688,2]
[401387111,1768171846152,-1330.89894074,0.00023688,2]
[401387113,1768171846163,-1046.32681666,0.00023688,2]
[401387125,1768171846267,-6645.3536406,0.00023688,2]
[401387463,1768172404767,154.5,5e-05,2]
[401387570,1768173001818,202.72497206,0.00026115,120]
[401387610,1768173032425,-500.0,0.00013273,2]
[401387612,1768173032435,-500.0,0.00013273,2]
[401387614,1768173032446,-500.0,0.00013273,2]
[401387616,1768173032456,-199.38371144,0.00013379,2]
[401387618,1768173032465,-300.0,0.00013673,2]
[401387620,1768173032475,-500.0,0.00013699,2]
[401387622,1768173032484,-500.0,0.00013699,2]
[401387624,1768173032493,-500.0,0.00013699,2]
[401387626,1768173032502,-1000.0,0.00013821,2]
[401387628,1768173032511,-1000.0,0.00013821,2]
[401387630,1768173032521,-1000.0,0.00013821,2]
[401387632,1768173032530,-600.0,0.00014221,2]
[401387634,1768173032539,-1000.0,0.00014247,2]
[401387636,1768173032549,-1000.0,0.00014247,2]
[401387638,1768173032558,-1000.0,0.00014247,2]
[401387640,1768173032567,-1500.0,0.00014368,2]
[401387642,1768173032577,-1500.0,0.00014368,2]
[401387644,1768173032587,-1500.0,0.00014368,2]
[401387645,1768173032596,-900.0,0.00014768,2]
[401387647,1768173032606,-1500.0,0.00014795,2]
[401387649,1768173032617,-1500.0,0.00014795,2]
[401387652,1768173032629,-1500.0,0.00014795,2]
[401387653,1768173032638,-2000.0,0.00014916,2]
[401387655,1768173032648,-2000.0,0.00014916,2]
[401387657,1768173032657,-2000.0,0.00014916,2]
[401387660,1768173032666,-1000.0,0.00015,2]
[401387662,1768173032675,-300.0,0.00015089,2]
[401387664,1768173032685,-300.0,0.00015089,2]
[401387666,1768173032694,-300.0,0.00015089,2]
[401387667,1768173032703,-300.0,0.00015089,2]
[401387669,1768173032712,-300.0,0.00015089,2]
[401387671,1768173032722,-300.0,0.00015089,2]
[401387673,1768173032731,-300.0,0.00015089,2]
[401387675,1768173032741,-300.0,0.00015089,2]
[401387678,1768173032750,-300.0,0.00015089,2]
[401387680,1768173032760,-300.0,0.00015089,2]
[401387681,1768173032769,-300.0,0.00015089,2]
[401387683,1768173032778,-300.0,0.00015089,2]
[401387686,1768173032788,-300.0,0.00015089,2]
[401387688,1768173032797,-300.0,0.00015089,2]
[401387689,1768173032806,-300.0,0.00015089,2]
[401387691,1768173032815,-444.72420012,0.00015316,2]
[401387693,1768173032825,-2000.0,0.00015342,2]
[401387695,1768173032834,-2000.0,0.00015342,2]
[401387697,1768173032843,-2000.0,0.00015342,2]
[401387699,1768173032853,-15232.17385255,0.00015364,2]
[401387701,1768173032868,-235.27277949,0.00015379,2]
[401387703,1768173032876,-2500.0,0.00015464,2]
[401387705,1768173032885,-2500.0,0.00015464,2]
[401387707,1768173032895,-600.0,0.00015648,2]
[401387709,1768173032904,-2500.0,0.0001589,2]
[401387711,1768173032913,-918.97723055,0.0001589,2]
[401387712,1768173032922,-2500.0,0.0001589,2]
[401387715,1768173032934,-1821.06911742,0.00016012,2]
[401387717,1768173032943,-3000.0,0.00016012,2]
[401387719,1768173032951,-3000.0,0.00016438,2]
[401387720,1768173032960,-3000.0,0.00016438,2]
[401387722,1768173032969,-3500.0,0.0001656,2]
[401387725,1768173032978,-3500.0,0.00016986,2]
[401387727,1768173032987,-3500.0,0.00016986,2]
[401387729,1768173032997,-2232.45700431,0.00017108,2]
[401387730,1768173033005,-720.0,0.00017213,2]
[401387732,1768173033015,-271.16184755,0.00017379,2]
[401387735,1768173033024,-4000.0,0.00017534,2]
[401387737,1768173033034,-4000.0,0.00017534,2]
[401387738,1768173033043,-154.5,0.000176,2]
[401387740,1768173033053,-4500.0,0.00018082,2]
[401387742,1768173033062,-3461.92726002,0.00018082,2]
[401387744,1768173033071,-9134.5169998,0.00018472,2]
[401387747,1768173033083,-1492.40530775,0.00018472,2]
[401388247,1768173038419,-4605.25154493,0.00018472,2]
[401388248,1768173038429,-155.5739919,0.00018481,2]
[401388249,1768173038439,-2079.0508167,0.0001863,2]
[401388250,1768173038450,-1764.58188738,0.0001863,2]
[401388251,1768173038461,-1156.36729592,0.0001863,2]
[401388252,1768173038470,-303.10001603,0.000189,2]
[401388253,1768173038481,-303.10001603,0.000189,2]
[401388254,1768173038490,-864.0,0.00018934,2]
[401388255,1768173038500,-155.57399191,0.00019052,2]
[401388256,1768173038510,-307.866591,0.0001906,2]
[401388257,1768173038519,-303.10001603,0.00019089,2]
[401388258,1768173038528,-68.38545751,0.00019178,2]
[401388259,1768173038540,-559.99095061,0.00019178,2]
[401388261,1768173038550,-164.08,0.000192,2]
[401388262,1768173038559,-304.04513064,0.00019278,2]
[401388265,1768173038571,-307.05091561,0.00019379,2]
[401388266,1768173038580,-151.55000802,0.0002,2]
[401388268,1768173038590,-1683.14244981,0.00020091,2]
[401388269,1768173038605,-887.18938723,0.00020091,2]
[401388270,1768173038615,-1041.66666667,0.00020187,2]
[401388271,1768173038626,-2570.33183704,0.00020534,2]
[401388272,1768173038635,-2570.33183704,0.00020694,2]
[401388273,1768173038644,-502.0,0.00020724,2]
[401388274,1768173038652,-1000.0,0.00020828,2]
[401388275,1768173038662,-155.5739919,0.00020883,5]
[401388276,1768173038671,-412.07,0.0002098,10]
[401388277,1768173038681,-5000.0,0.00020988,2]
[401388278,1768173038690,-500.0,0.00020989,2]
[401388279,1768173038699,-500.0,0.00020989,2]
[401388280,1768173038708,-680.15689841,0.00020989,2]
[401388281,1768173038718,-207.74316228,0.00020989,2]
[401388282,1768173038727,-500.0,0.00020989,2]
[401388283,1768173038738,-680.15689841,0.00020989,2]
[401388284,1768173038747,-680.15689841,0.00020989,2]
[401388285,1768173038757,-680.15689841,0.00020989,2]
[401388286,1768173038766,-432.37225915,0.00020989,2]
[401388287,1768173038775,-680.15689841,0.00020989,2]
[401388288,1768173038785,-680.15689841,0.00020989,2]
[401388289,1768173038795,-680.15689841,0.00020989,2]
[401388290,1768173038804,-680.15689841,0.00020989,2]
[401388291,1768173038814,-680.15689841,0.00020989,2]
[401388292,1768173038824,-680.15689841,0.00020989,2]
[401388293,1768173038833,-680.15689841,0.00020989,2]
[401388294,1768173038844,-680.15689841,0.00020989,2]
[401388295,1768173038854,-680.15689841,0.00020989,2]
[401388296,1768173038870,-680.15689841,0.00020989,2]
[401388297,1768173038881,-680.15689841,0.00020989,2]
[401388298,1768173038891,-680.15689841,0.00020989,2]
[401388299,1768173038908,-704.88987652,0.00020989,2]
[401388300,1768173038918,-704.88987652,0.00020989,2]
[401388301,1768173038928,-704.88987652,0.00020989,2]
[401388302,1768173038947,-704.88987652,0.00020989,2]
[401388303,1768173038959,-704.88987652,0.00020989,2]
[401388304,1768173038969,-704.88987652,0.00020989,2]
[401388305,1768173038979,-704.88987652,0.00020989,2]
[401388306,1768173038988,-704.88987652,0.00020989,2]
[401388307,1768173038997,-704.88987652,0.00020989,2]
[401388308,1768173039007,-704.88987652,0.00020989,2]
[401388309,1768173039016,-708.8059314,0.00020989,2]
[401388310,1768173039025,-708.8059314,0.00020989,2]
[401388311,1768173039035,-2570.33183704,0.00020989,2]
[401388312,1768173039045,-100000.0,0.0002099,2]
[401388313,1768173039055,-506.7938,0.0002099,2]
[401388314,1768173039064,-506.7938,0.0002099,3]
[401388315,1768173039074,-506.7924,0.0002099,5]
[401388316,1768173039083,-506.79,0.0002099,2]
[401388317,1768173039093,-167.64,0.00021,2]
[401388318,1768173039102,-339.0,0.00021098,2]
[401388319,1768173039111,-2570.33183704,0.0002122,2]
[401388320,1768173039121,-410.0,0.00021293,2]
[401388321,1768173039131,-342.93998367,0.00021379,2]
[401388322,1768173039140,-509.0,0.00021523,2]
[401388323,1768173039150,-15232.17385248,0.00021581,2]
[401388324,1768173039163,-2570.33183704,0.00021588,2]
[401388325,1768173039172,-164.08,0.000216,2]
[401388326,1768173039181,-2570.33183704,0.00021726,2]
[401388327,1768173039191,-3993.10718848,0.0002189,2]
[401388328,1768173039201,-2570.33183704,0.00021941,2]
[401388329,1768173039210,-575242.52269731,0.00021988,2]
[401388330,1768173039222,-3349.68883386,0.00021988,2]
[401388388,1768173040681,-575.75169416,0.00021988,2]
[401388952,1768173046415,-778.77913156,0.00021988,2]
[401388962,1768173046502,-907.21964252,0.00021988,2]
[401388965,1768173046514,-5509.92181514,0.00021988,2]
[401389160,1768173338541,1938.17823614,0.00030137,120]
[401389563,1768174232606,-500.0,0.00013273,2]
[401389565,1768174232615,-500.0,0.00013273,2]
[401389567,1768174232624,-172.26752668,0.00013273,2]
[401389569,1768174232634,-1000.0,0.00013699,2]
[401389571,1768174232643,-500.0,0.00013699,2]
[401389573,1768174232652,-225.80004291,0.00013699,2]
[401389575,1768174232663,-274.19995709,0.00013699,2]
[401389577,1768174232672,-1000.0,0.00013821,2]
[401389579,1768174232684,-1000.0,0.00013821,2]
[401389581,1768174232694,-1000.0,0.00014247,2]
[401389583,1768174232703,-1000.0,0.00014247,2]
[401389584,1768174232713,-1500.0,0.00014368,2]
[401389585,1768174232722,-1500.0,0.00014368,2]
[401389586,1768174232731,-1500.0,0.00014795,2]
[401389587,1768174232741,-1500.0,0.00014795,2]
[401389588,1768174232750,-4382.62333341,0.00014889,2]
[401389589,1768174232759,-1995.04726907,0.00014916,2]
[401389590,1768174232769,-2000.0,0.00014916,2]
[401389591,1768174232778,-6357.32743743,0.00014989,2]
[401389592,1768174232787,-9520.1086578,0.00014989,2]
[401389593,1768174232797,-1000.0,0.00015,2]
[401389594,1768174232807,-301.71937705,0.00015068,2]
[401389595,1768174232816,-300.0,0.00015089,2]
[401389596,1768174232827,-300.0,0.00015089,2]
[401389597,1768174232837,-300.0,0.00015089,2]
[401389598,1768174232846,-300.0,0.00015089,2]
[401389599,1768174232856,-300.0,0.00015089,2]
[401389600,1768174232867,-300.0,0.00015089,2]
[401389601,1768174232877,-300.0,0.00015089,2]
[401389602,1768174232887,-300.0,0.00015089,2]
[401389603,1768174232897,-300.0,0.00015089,2]
[401389604,1768174232907,-300.0,0.00015089,2]
[401389605,1768174232918,-300.0,0.00015089,2]
[401389606,1768174232929,-300.0,0.00015089,2]
[401389607,1768174232938,-300.0,0.00015089,2]
[401389608,1768174232947,-300.0,0.00015089,2]
[401389609,1768174232956,-300.0,0.00015089,2]
[401389610,1768174232965,-203.27568148,0.00015273,2]
[401389611,1768174232974,-600.0,0.00015288,2]
[401389612,1768174232984,-1500.0,0.00015342,2]
[401389613,1768174232993,-1500.0,0.00015342,2]
[401389614,1768174233002,-533.32597111,0.00015464,2]
[401389615,1768174233011,-720.0,0.00016817,2]
[401389616,1768174233022,-234.28383629,0.00017273,2]
[401389617,1768174233032,-9520.1086578,0.00018149,2]
[401389618,1768174233042,-864.0,0.00018498,2]
[401389619,1768174233051,-303.10001603,0.000189,2]
[401389620,1768174233062,-502.69926409,0.000189,2]
[401389621,1768174233072,-17960.14853983,0.00019,2]
[401389622,1768174233082,-2603.49,0.00019,2]
[401389623,1768174233091,-303.10001605,0.00019089,2]
[401389624,1768174233100,-242.62689371,0.00019178,2]
[401389625,1768174233110,-162.99,0.000192,2]
[401389626,1768174233119,-167.65,0.000192,2]
[401389627,1768174233128,-555.69554276,0.00019267,2]
[401389628,1768174233137,-2222.78217104,0.00019267,2]
[401389629,1768174233146,-5001.25988483,0.00019267,2]
[401389630,1768174233155,-330.93144456,0.00019267,2]
[401389631,1768174233165,-1323.72577822,0.00019267,2]
[401389632,1768174233175,-2978.383001,0.00019267,2]
[401389633,1768174233184,-5294.90311289,0.00019267,2]
[401389634,1768174233193,-969.28895496,0.00019267,2]
[401389653,1768174238607,-446.94503474,0.00019267,2]
[401389654,1768174238619,-1586.21195227,0.00019267,2]
[401389655,1768174238631,-2352.00076887,0.00019267,2]
[401389656,1768174238642,-2918.83940306,0.00019267,2]
[401389657,1768174238651,-265.29199109,0.00019273,2]
[401389658,1768174238661,-3657.3919346,0.00019544,2]
[401389659,1768174238671,-1713.05688947,0.00019544,2]
[401389660,1768174238681,-6845.3753303,0.00019544,2]
[401389661,1768174238691,-5000.0,0.00019999,2]
[401389662,1768174238701,-151.55000802,0.0002,2]
[401389663,1768174238711,-366.68910096,0.0002,30]
[401389664,1768174238720,-652.55120361,0.0002,2]
[401389665,1768174238730,-14696.06851441,0.0002,2]
[401389666,1768174238739,-371.48046337,0.0002,2]
[401389667,1768174238749,-717.29999854,0.0002,2]
[401389668,1768174238758,-68.04392257,0.0002,2]
[401389669,1768174238770,-3006.72,0.0002,2]
[401389671,1768174238780,-2739.5793,0.0002,2]
[401389672,1768174238791,-920.0098551,0.0002,2]
[401389677,1768174240772,-928.00674222,0.00014889,2]
[401389678,1768174240865,-1143.30974969,0.00014889,2]
[401390152,1768174246610,-1422.31461751,0.00014889,2]
[401390166,1768174246734,-2033.13085028,0.00014889,2]
[401391004,1768174599604,1645.0,0.00030136,120]
[401391027,1768174718398,500.0,0.00030136,120]
[401391166,1768175404750,154.94,5e-05,2]
[401391200,1768175431623,-1200.0,0.00013272,2]
[401391201,1768175431632,-500.0,0.00013273,2]
[401391202,1768175431642,-500.0,0.00013273,2]
[401391203,1768175431651,-500.0,0.00013273,2]
[401391204,1768175431660,-500.0,0.00013273,2]
[401391205,1768175431669,-12.09497955,0.00013273,2]
[401391206,1768175431681,-595.90502045,0.00013273,2]
[401391207,1768175431691,-41.30230396,0.00013673,2]
[401391208,1768175431702,-258.69769604,0.00013673,2]
[401391209,1768175431711,-288.0,0.00013698,2]
[401391210,1768175431721,-300.0,0.00013698,2]
[401391211,1768175431730,-266.98605773,0.00013699,2]
[401391212,1768175431742,-233.01394227,0.00013699,2]
[401391213,1768175431751,-500.0,0.00013699,2]
[401391214,1768175431760,-500.0,0.00013699,2]
[401391215,1768175431770,-167.76496396,0.00013699,2]
[401391216,1768175431779,-1000.0,0.00013821,2]
[401391217,1768175431789,-1000.0,0.00013821,2]
[401391218,1768175431799,-1000.0,0.00013821,2]
[401391219,1768175431809,-1000.0,0.00013821,2]
[401391220,1768175431819,-600.0,0.00014221,2]
[401391221,1768175431828,-1000.0,0.00014247,2]
[401391222,1768175431838,-1000.0,0.00014247,2]
[401391223,1768175431848,-1000.0,0.00014247,2]
[401391224,1768175431858,-1500.0,0.00014368,2]
[401391225,1768175431867,-1500.0,0.00014368,2]
[401391226,1768175431876,-1500.0,0.00014368,2]
[401391227,1768175431887,-1500.0,0.00014368,2]
[401391228,1768175431899,-900.0,0.00014768,2]
[401391229,1768175431909,-8038.58821628,0.00014789,2]
[401391230,1768175431920,-1228.67557463,0.00014789,2]
[401391232,1768175437836,-97546.65478027,0.00014789,2]
[401391233,1768175437846,-1500.0,0.00014795,2]
[401391234,1768175437856,-1500.0,0.00014795,2]
[401391235,1768175437866,-1500.0,0.00014795,2]
[401391236,1768175437876,-500.0,0.00014888,2]
[401391237,1768175437892,-500.0,0.00014888,2]
[401391238,1768175437902,-500.0,0.00014888,2]
[401391239,1768175437917,-500.0,0.00014888,2]
[401391241,1768175437927,-500.0,0.00014888,2]
[401391242,1768175437937,-378.902981,0.00014888,2]
[401391244,1768175437952,-331.82147844,0.00014889,2]
[401391245,1768175437961,-1500.0,0.00014916,2]
[401391246,1768175437970,-1500.0,0.00014916,2]
[401391247,1768175437979,-1500.0,0.00014916,2]
[401391248,1768175437988,-1000.0,0.00014916,2]
[401391249,1768175437997,-1000.0,0.00015,2]
[401391250,1768175438007,-420.0,0.00015011,2]
[401391251,1768175438016,-524.454437,0.00015068,2]
[401391252,1768175438026,-300.0,0.00015186,2]
[401391253,1768175438035,-300.0,0.00015186,2]
[401391254,1768175438044,-300.0,0.00015186,2]
[401391255,1768175438054,-300.0,0.00015186,2]
[401391256,1768175438065,-300.0,0.00015186,2]
[401391257,1768175438076,-300.0,0.00015186,2]
[401391258,1768175438085,-300.0,0.00015186,2]
[401391259,1768175438095,-300.0,0.00015186,2]
[401391260,1768175438105,-300.0,0.00015186,2]
[401391261,1768175438115,-300.0,0.00015186,2]
[401391262,1768175438125,-300.0,0.00015186,2]
[401391263,1768175438134,-300.0,0.00015186,2]
[401391264,1768175438145,-300.0,0.00015186,2]
[401391265,1768175438154,-300.0,0.00015186,2]
[401391266,1768175438163,-300.0,0.00015186,2]
[401391267,1768175438173,-600.0,0.00015186,2]
[401391268,1768175438182,-600.0,0.00015316,2]
[401391269,1768175438191,-1000.0,0.00015342,2]
[401391270,1768175438200,-2000.0,0.00015342,2]
[401391271,1768175438209,-1000.0,0.00015342,2]
[401391272,1768175438219,-197.96265747,0.00015699,2]
[401391273,1768175438228,-1392.9582955,0.0001589,2]
[401391274,1768175438237,-155.5739919,0.00016346,2]
[401391275,1768175438246,-181.0,0.00016451,2]
[401391276,1768175438256,-2570.33183704,0.00016478,2]
[401391277,1768175438265,-5000.0,0.00016518,2]
[401391278,1768175438275,-282.97033037,0.00016519,2]
[401391279,1768175438284,-1131.88132148,0.00016519,2]
[401391280,1768175438294,-2546.73297333,0.00016519,2]
[401391281,1768175438303,-4527.52528592,0.00016519,2]
[401391282,1768175438312,-7074.25825925,0.00016519,2]
[401391283,1768175438322,-10186.93189332,0.00016519,2]
[401391284,1768175438332,-720.0,0.00016704,2]
[401391285,1768175438341,-865.55630466,0.00016757,2]
[401391286,1768175438351,-3462.22521865,0.00016757,2]
[401391287,1768175438361,-7782.21673521,0.00016757,2]
[401391288,1768175438370,-155.57399191,0.00016852,2]
[401391289,1768175438379,-157.11492553,0.00016852,2]
[401391290,1768175438389,-2570.33183704,0.00016871,2]
[401391291,1768175438398,-2570.33183704,0.00017238,2]
[401391292,1768175438407,-2570.33183704,0.00017261,2]
[401391293,1768175438416,-154.94,0.000176,2]
[401391294,1768175438426,-500.0,0.00017637,2]
[401391295,1768175438436,-500.0,0.00017637,2]
[401391296,1768175438445,-768.91103486,0.00017637,2]
[401391297,1768175438454,-768.91103486,0.00017637,2]
[401391298,1768175438463,-404.46847916,0.00017637,2]
[401391299,1768175438472,-500.0,0.00017637,2]
[401391300,1768175438481,-768.91103486,0.00017637,2]
[401391301,1768175438490,-768.91103486,0.00017637,2]
[401391302,1768175438500,-768.91103486,0.00017637,2]
[401391303,1768175438509,-432.37225915,0.00017637,2]
[401391304,1768175438518,-768.91103486,0.00017637,2]
[401391305,1768175438527,-768.91103486,0.00017637,2]
[401391306,1768175438545,-768.91103486,0.00017637,2]
[401391307,1768175438554,-768.91103486,0.00017637,2]
[401391308,1768175438563,-768.91103486,0.00017637,2]
[401391309,1768175438573,-768.91103486,0.00017637,2]
[401391310,1768175438582,-768.91103486,0.00017637,2]
[401391311,1768175438591,-768.91103486,0.00017637,2]
[401391312,1768175438601,-768.91103486,0.00017637,2]
[401391313,1768175438611,-768.91103486,0.00017637,2]
[401391314,1768175438620,-768.91103486,0.00017637,2]
[401391315,1768175438629,-768.91103486,0.00017637,2]
[401391316,1768175438638,-768.91103486,0.00017637,2]
[401391317,1768175438648,-768.91103486,0.00017637,2]
[401391318,1768175438657,-768.91103486,0.00017637,2]